fUSD/lending_fUSD_20250110
["ID","MTS","AMOUNT","RATE_DAILY","PERIOD"]
[348376570,1736482234848,-1038.96,9.998e-05,2]
[348376571,1736482234862,-500.0,9.998e-05,2]
[348376572,1736482234873,-1855.31,9.998e-05,2]
[348376573,1736482234884,-510.12,9.998e-05,2]
[348376574,1736482234894,-1579.77,9.998e-05,2]
[348376575,1736482234905,-500.0,9.998e-05,2]
[348376576,1736482234914,-1389.43,9.998e-05,2]
[348376577,1736482234924,-912.45,9.998e-05,2]
[348376578,1736482234935,-592.85,9.998e-05,2]
[348376579,1736482234944,-1388.27,9.998e-05,2]
[348376580,1736482234953,-1920.92,9.998e-05,2]
[348376581,1736482234962,-4358.51,9.998e-05,2]
[348376582,1736482234971,-537.4,9.998e-05,2]
[348376583,1736482234981,-1157.26,9.998e-05,2]
[348376584,1736482234990,-675.18,9.998e-05,2]
[348376585,1736482235000,-791.73,9.998e-05,2]
[348376586,1736482235010,-1181.51,9.998e-05,2]
[348376587,1736482235020,-500.3,9.998e-05,2]
[348376588,1736482235029,-500.0,9.998e-05,2]
[348376589,1736482235039,-3586.95882896,9.999e-05,2]
[348376590,1736482235049,-507.1,9.999e-05,2]
[348376591,1736482235059,-712.19,9.999e-05,2]
[348376592,1736482235069,-622.67,9.999e-05,2]
[348376593,1736482235078,-873.41,9.999e-05,2]
[348376594,1736482235088,-669.13,9.999e-05,2]
[348376595,1736482235097,-500.0,9.999e-05,2]
[348376596,1736482235107,-500.0,9.999e-05,2]
[348376597,1736482235116,-524.17,9.999e-05,2]
[348376598,1736482235126,-500.0,9.999e-05,2]
[348376599,1736482235135,-500.0,9.999e-05,2]
[348376600,1736482235144,-500.0,9.999e-05,2]
[348376601,1736482235154,-1016.89,9.999e-05,2]
[348376602,1736482235163,-500.0,9.999e-05,2]
[348376603,1736482235172,-741.84,9.999e-05,2]
[348376604,1736482235182,-725.04,9.999e-05,2]
[348376605,1736482235193,-500.0,9.999e-05,2]
[348376606,1736482235203,-964.93,9.999e-05,2]
[348376607,1736482235212,-500.0,9.999e-05,2]
[348376608,1736482235222,-500.0,9.999e-05,2]
[348376609,1736482235232,-505.57479473,9.999e-05,2]
[348376610,1736482235241,-1067.25,9.999e-05,2]
[348376611,1736482235250,-323.6066652,9.999e-05,2]
[348376612,1736482235259,-509.22886479,9.999e-05,2]
[348376613,1736482235268,-500.0,9.999e-05,2]
[348376614,1736482235278,-503.23856205,9.999e-05,2]
[348376615,1736482235287,-500.0,9.999e-05,2]
[348376616,1736482235296,-515.98214403,9.999e-05,2]
[348376617,1736482235305,-500.0,9.999e-05,2]
[348376618,1736482235315,-500.0,9.999e-05,2]
[348376619,1736482235324,-500.0,9.999e-05,2]
[348376620,1736482235333,-500.0,9.999e-05,2]
[348376621,1736482235342,-500.0,9.999e-05,2]
[348376622,1736482235351,-370.59672431,9.999e-05,2]
[348376623,1736482235360,-805.96,9.999e-05,2]
[348376624,1736482235369,-971.43,9.999e-05,2]
[348376625,1736482235378,-511.33,9.999e-05,2]
[348376626,1736482235388,-500.0,9.999e-05,2]
[348376627,1736482235397,-500.0,9.999e-05,2]
[348376628,1736482235406,-500.0,9.999e-05,2]
[348376629,1736482235415,-500.0,9.999e-05,2]
[348376630,1736482235424,-500.0,9.999e-05,2]
[348376631,1736482235433,-500.0,9.999e-05,2]
[348376632,1736482235443,-500.0,9.999e-05,2]
[348376633,1736482235451,-500.0,9.999e-05,2]
[348376634,1736482235461,-546.87,9.999e-05,2]
[348376635,1736482235470,-500.0,9.999e-05,2]
[348376636,1736482235479,-500.0,9.999e-05,2]
[348376637,1736482235489,-551.59,9.999e-05,2]
[348376638,1736482235500,-500.0,9.999e-05,2]
[348376639,1736482235509,-500.0,9.999e-05,2]
[348376640,1736482235520,-500.0,9.999e-05,2]
[348376641,1736482235529,-522.65,9.999e-05,2]
[348376642,1736482235539,-500.0,9.999e-05,2]
[348376643,1736482235548,-500.0,9.999e-05,2]
[348376644,1736482235560,-500.0,9.999e-05,2]
[348376645,1736482235572,-500.0,9.999e-05,2]
[348376646,1736482235581,-500.0,9.999e-05,2]
[348376647,1736482235591,-500.0,9.999e-05,2]
[348376648,1736482235601,-325.44750405,9.999e-05,2]
[348376649,1736482235610,-500.0,9.999e-05,2]
[348376650,1736482235620,-500.0,9.999e-05,2]
[348376651,1736482235629,-500.0,9.999e-05,2]
[348376652,1736482235638,-500.0,9.999e-05,2]
[348376653,1736482235647,-502.47798666,9.999e-05,2]
[348376654,1736482235656,-500.0,9.999e-05,2]
[348376655,1736482235668,-500.0,9.999e-05,2]
[348376656,1736482235678,-553.9,9.999e-05,2]
[348376657,1736482235688,-500.0,9.999e-05,2]
[348376658,1736482235697,-500.0,9.999e-05,2]
[348376659,1736482235707,-500.0,9.999e-05,2]
[348376660,1736482235719,-501.62666147,9.999e-05,2]
[348376661,1736482235729,-500.0,9.999e-05,2]
[348376662,1736482235739,-1593.17,9.999e-05,2]
[348376663,1736482235750,-1838.8,9.999e-05,2]
[348376664,1736482235760,-500.0,9.999e-05,2]
[348376665,1736482235782,-500.0,9.999e-05,2]
[348376666,1736482235794,-500.0,9.999e-05,2]
[348376667,1736482235804,-823.2,9.999e-05,2]
[348376668,1736482235813,-500.0,9.999e-05,2]
[348376669,1736482235824,-500.0,9.999e-05,2]
[348376670,1736482235834,-500.0,9.999e-05,2]
[348376671,1736482235844,-2336.17423167,9.999e-05,2]
[348376672,1736482235867,-256.99576833,9.999e-05,2]
[348376673,1736482235877,-42.99423167,9.999e-05,2]
[348376674,1736482235890,-457.00576833,9.999e-05,2]
[348376675,1736482235900,-648.65,9.999e-05,2]
[348376676,1736482235911,-143.84907185,9.999e-05,2]
[348376677,1736482236061,-506.59393986,9.997e-05,2]
[348376678,1736482236071,-356.15092815,9.999e-05,2]
[348376679,1736482236081,-886.74,9.999e-05,2]
[348376680,1736482236091,-500.0,9.999e-05,2]
[348376681,1736482236101,-500.0,9.999e-05,2]
[348376682,1736482236111,-500.0,9.999e-05,2]
[348376683,1736482236121,-780.85,9.999e-05,2]
[348376684,1736482236131,-500.0,9.999e-05,2]
[348376685,1736482236140,-501.76609976,9.999e-05,2]
[348376686,1736482236150,-500.0,9.999e-05,2]
[348376687,1736482236160,-861.79,9.999e-05,2]
[348376688,1736482236169,-1562.38,9.999e-05,2]
[348376689,1736482236179,-500.0,9.999e-05,2]
[348376690,1736482236189,-503.00508919,9.999e-05,2]
[348376691,1736482236199,-272.28391472,9.999e-05,2]
[348376692,1736482236404,-227.71608528,9.999e-05,2]
[348376693,1736482236440,-501.16003813,9.999e-05,2]
[348376694,1736482236449,-459.72831266,9.999e-05,2]
[348376695,1736482236459,-500.0,9.999e-05,2]
[348376696,1736482236469,-500.0,9.999e-05,2]
[348376697,1736482236478,-651.12,9.999e-05,2]
[348376698,1736482236487,-502.36546025,9.999e-05,2]
[348376699,1736482236496,-500.0,9.999e-05,2]
[348376700,1736482236505,-500.0,9.999e-05,2]
[348376701,1736482236515,-1384.04,9.999e-05,2]
[348376702,1736482236527,-500.0,9.999e-05,2]
[348376703,1736482236536,-500.0,9.999e-05,2]
[348376704,1736482236547,-500.0,9.999e-05,2]
[348376705,1736482236556,-1985.83,9.999e-05,2]
[348376706,1736482236566,-184.94010367,9.999e-05,2]
[348376707,1736482236592,-315.05989633,9.999e-05,2]
[348376708,1736482236602,-500.77477382,9.999e-05,2]
[348376709,1736482236611,-500.0,9.999e-05,2]
[348376710,1736482236621,-9.45500645,9.999e-05,2]
[348376711,1736482236632,-491.43538605,9.999e-05,2]
[348376712,1736482236642,-500.41009628,9.999e-05,2]
[348376713,1736482236652,-502.26178776,9.999e-05,2]
[348376714,1736482236662,-503.56542541,9.999e-05,2]
[348376715,1736482236671,-62.22800361,9.999e-05,2]
[348376716,1736482236683,-438.60834785,9.999e-05,2]
[348376717,1736482236692,-136.57463176,9.999e-05,2]
[348376718,1736482236704,-363.42536824,9.999e-05,2]
[348376719,1736482236714,-500.0,9.999e-05,2]
[348376720,1736482236724,-705.18,9.999e-05,2]
[348376721,1736482236734,-501.14685193,9.999e-05,2]
[348376722,1736482236744,-741.13,9.999e-05,2]
[348376723,1736482236754,-502.79720333,9.999e-05,2]
[348376724,1736482236763,-500.0,9.999e-05,2]
[348376725,1736482236773,-500.0,9.999e-05,2]
[348376726,1736482236783,-500.0,9.999e-05,2]
[348376727,1736482236792,-1178.36,9.999e-05,2]
[348376728,1736482236802,-521.77992438,9.999e-05,2]
[348376729,1736482236812,-500.0,9.999e-05,2]
[348376730,1736482236822,-502.66602578,9.999e-05,2]
[348376731,1736482236832,-1017.45,9.999e-05,2]
[348376732,1736482236841,-502.92716389,9.999e-05,2]
[348376733,1736482236852,-500.0,9.999e-05,2]
[348376734,1736482236864,-501.19921254,9.999e-05,2]
[348376735,1736482236874,-501.48091697,9.999e-05,2]
[348376736,1736482236883,-907.33,9.999e-05,2]
[348376737,1736482236892,-1342.54,9.999e-05,2]
[348376738,1736482236902,-2789.99,9.999e-05,2]
[348376739,1736482236911,-500.0,9.999e-05,2]
[348376740,1736482236920,-634.63,9.999e-05,2]
[348376741,1736482236930,-500.0,9.999e-05,2]
[348376742,1736482236941,-1064.81,9.999e-05,2]
[348376743,1736482236956,-6985.15,9.999e-05,2]
[348376744,1736482236966,-685.19,9.999e-05,2]
[348376745,1736482236984,-500.0,9.999e-05,2]
[348376746,1736482236994,-544.96,9.999e-05,2]
[348376747,1736482237003,-1033.74,9.999e-05,2]
[348376748,1736482237012,-500.89533938,9.999e-05,2]
[348376749,1736482237022,-1544.0,9.999e-05,2]
[348376750,1736482237033,-547.75,9.999e-05,2]
[348376751,1736482237043,-957.08,9.999e-05,2]
[348376752,1736482237054,-500.0,9.999e-05,2]
[348376753,1736482237064,-500.0,9.999e-05,2]
[348376754,1736482237074,-500.0,9.999e-05,2]
[348376755,1736482237084,-500.0,9.999e-05,2]
[348376756,1736482237093,-500.0,9.999e-05,2]
[348376757,1736482237102,-500.0,9.999e-05,2]
[348376758,1736482237112,-806.42,9.999e-05,2]
[348376759,1736482237123,-1529.4,9.999e-05,2]
[348376760,1736482237133,-1270.31,9.999e-05,2]
[348376761,1736482237143,-500.0,9.999e-05,2]
[348376762,1736482237152,-2689.69,9.999e-05,2]
[348376763,1736482237162,-1054.74,9.999e-05,2]
[348376764,1736482237172,-398.28156121,9.999e-05,2]
[348376765,1736482237184,-249.40843879,9.999e-05,2]
[348376766,1736482237194,-594.66101838,0.0001,2]
[348376767,1736482237204,-784.87225418,0.0001,3]
[348376768,1736482237213,-1665.19150886,0.0001,2]
[348376769,1736482237223,-209.69,0.0001,2]
[348376770,1736482237233,-5586.22474471,0.0001,2]
[348376771,1736482237243,-5586.2247445,0.0001,2]
[348376772,1736482237252,-5586.2247445,0.0001,2]
[348376773,1736482237262,-5586.2247445,0.0001,2]
[348376774,1736482237271,-5586.2247445,0.0001,2]
[348376775,1736482237283,-5586.2247445,0.00010003,2]
[348376776,1736482237292,-150.0,0.00010004,2]
[348376777,1736482237302,-150.0,0.00010004,2]
[348376778,1736482237312,-1665.19150886,0.00010014,2]
[348376779,1736482237321,-1665.19150886,0.00010072,2]
[348376780,1736482237331,-250.0,0.00010087,2]
[348376781,1736482237341,-150.0,0.00010093,2]
[348376782,1736482237350,-6062.854919,0.000101,2]
[348376783,1736482237360,-150.0,0.00010119,2]
[348376784,1736482237370,-5586.2247445,0.00010124,2]
[348376785,1736482237379,-1665.19150886,0.0001013,2]
[348376786,1736482237389,-725.19,0.00010137,2]
[348376787,1736482237398,-153.22,0.00010137,2]
[348376788,1736482237408,-705.6345,0.00010158,2]
[348376789,1736482237418,-500.0,0.00010171,2]
[348376790,1736482237427,-500.0,0.00010171,2]
[348376791,1736482237437,-1063.52,0.00010171,2]
[348376792,1736482237447,-310.69,0.00010171,2]
[348376793,1736482237457,-283.95133999,0.00010171,2]
[348376794,1736482237467,-500.0,0.00010171,2]
[348376795,1736482237477,-500.0,0.00010171,2]
[348376796,1736482237486,-733.29,0.00010171,2]
[348376797,1736482237496,-207.02,0.00010171,2]
[348376798,1736482237505,-500.0,0.00010171,2]
[348376799,1736482237515,-500.0,0.00010171,2]
[348376800,1736482237525,-500.0,0.00010171,2]
[348376801,1736482237535,-874.12,0.00010171,2]
[348376802,1736482237544,-500.0,0.00010171,2]
[348376803,1736482237554,-774.22,0.00010171,2]
[348376804,1736482237564,-500.0,0.00010171,2]
[348376805,1736482237573,-500.0,0.00010171,2]
[348376806,1736482237584,-846.25,0.00010171,2]
[348376807,1736482237593,-505.85391089,0.00010171,2]
[348376808,1736482237603,-556.45,0.00010171,2]
[348376809,1736482237613,-500.0,0.00010171,2]
[348376810,1736482237623,-500.0,0.00010171,2]
[348376811,1736482237632,-502.29169325,0.00010171,2]
[348376812,1736482237641,-500.0,0.00010171,2]
[348376813,1736482237651,-500.0,0.00010171,2]
[348376814,1736482237660,-500.0,0.00010171,2]
[348376815,1736482237670,-500.0,0.00010171,2]
[348376816,1736482237679,-500.0,0.00010171,2]
[348376817,1736482237689,-500.71730377,0.00010171,2]
[348376818,1736482237699,-198.27589731,0.00010171,2]
[348376819,1736482237708,-500.0,0.00010171,2]
[348376820,1736482237718,-501.86183907,0.00010171,2]
[348376821,1736482237727,-500.0,0.00010171,2]
[348376822,1736482237737,-501.76428349,0.00010171,2]
[348376823,1736482237746,-681.0,0.00010171,2]
[348376824,1736482237756,-500.59669779,0.00010171,2]
[348376825,1736482237765,-500.0,0.00010171,2]
[348376826,1736482237776,-317.14101022,0.00010171,2]
[348376827,1736482237786,-500.0,0.00010171,2]
[348376828,1736482237797,-500.0,0.00010171,2]
[348376829,1736482237807,-500.0,0.00010171,2]
[348376830,1736482237816,-500.0,0.00010171,2]
[348376831,1736482237826,-500.0,0.00010171,2]
[348376832,1736482237836,-500.0,0.00010171,2]
[348376833,1736482237846,-850.44,0.00010171,2]
[348376834,1736482237859,-500.0,0.00010171,2]
[348376835,1736482237869,-500.0,0.00010171,2]
[348376836,1736482237879,-500.0,0.00010171,2]
[348376837,1736482237888,-500.0,0.00010171,2]
[348376838,1736482237898,-500.1432732,0.00010171,2]
[348376839,1736482237908,-500.0,0.00010171,2]
[348376840,1736482237917,-510.91524275,0.00010171,2]
[348376841,1736482237927,-500.0,0.00010171,2]
[348376842,1736482237937,-500.0,0.00010171,2]
[348376843,1736482237947,-500.0,0.00010171,2]
[348376844,1736482237957,-500.0,0.00010171,2]
[348376845,1736482237966,-500.0,0.00010171,2]
[348376846,1736482237976,-509.45274208,0.00010171,2]
[348376847,1736482237986,-653.86,0.00010171,2]
[348376848,1736482237996,-499.35670743,0.00010171,2]
[348376849,1736482238006,-500.0,0.00010171,2]
[348376851,1736482238017,-500.0,0.00010171,2]
[348376854,1736482238026,-500.0,0.00010171,2]
[348376855,1736482238037,-500.0,0.00010171,2]
[348376856,1736482238046,-840.11,0.00010171,2]
[348376857,1736482238055,-500.0,0.00010171,2]
[348376858,1736482238064,-500.0,0.00010171,2]
[348376859,1736482238073,-500.0,0.00010171,2]
[348376860,1736482238083,-500.0,0.00010171,2]
[348376861,1736482238093,-659.71,0.00010171,2]
[348376862,1736482238103,-500.0,0.00010171,2]
[348376863,1736482238112,-500.0,0.00010171,2]
[348376864,1736482238122,-476.1949559,0.00010171,2]
[348376865,1736482238131,-662.3,0.00010171,2]
[348376866,1736482238141,-500.0,0.00010171,2]
[348376867,1736482238151,-835.43,0.00010171,2]
[348376868,1736482238160,-500.0,0.00010171,2]
[348376869,1736482238170,-500.0,0.00010171,2]
[348376870,1736482238180,-500.0,0.00010171,2]
[348376871,1736482238190,-500.0,0.00010171,2]
[348376872,1736482238200,-879.09,0.00010171,2]
[348376873,1736482238210,-618.15,0.00010171,2]
[348376874,1736482238220,-500.0,0.00010171,2]
[348376875,1736482238230,-500.0,0.00010171,2]
[348376876,1736482238240,-500.0,0.00010171,2]
[348376877,1736482238251,-741.76,0.00010171,2]
[348376878,1736482238262,-506.81500333,0.00010171,2]
[348376879,1736482238271,-500.0,0.00010171,2]
[348376880,1736482238281,-500.0,0.00010171,2]
[348376881,1736482238291,-500.80094492,0.00010171,2]
[348376882,1736482238300,-502.16818808,0.00010171,2]
[348376883,1736482238309,-500.0,0.00010171,2]
[348376884,1736482238318,-500.0,0.00010171,2]
[348376885,1736482238328,-500.0,0.00010171,2]
[348376886,1736482238337,-502.30444183,0.00010171,2]
[348376887,1736482238347,-500.0,0.00010171,2]
[348376888,1736482238357,-895.69,0.00010171,2]
[348376889,1736482238367,-501.9423603,0.00010171,2]
[348376890,1736482238377,-500.0,0.00010171,2]
[348376891,1736482238386,-426.86522489,0.00010171,2]
[348376892,1736482238395,-507.33087612,0.00010171,2]
[348376893,1736482238405,-500.0,0.00010171,2]
[348376894,1736482238414,-652.68,0.00010171,2]
[348376895,1736482238425,-503.36588308,0.00010171,2]
[348376896,1736482238435,-500.0,0.00010171,2]
[348376897,1736482238444,-500.0,0.00010171,2]
[348376898,1736482238454,-503.93007976,0.00010171,2]
[348376899,1736482238464,-500.0,0.00010171,2]
[348376901,1736482238473,-500.0,0.00010171,2]
[348376903,1736482238483,-500.0,0.00010171,2]
[348376905,1736482238493,-502.17488446,0.00010171,2]
[348376907,1736482238502,-500.0,0.00010171,2]
[348376909,1736482238512,-500.0,0.00010171,2]
[348376911,1736482238522,-500.0,0.00010171,2]
[348376913,1736482238543,-823.76,0.00010171,2]
[348376915,1736482238552,-500.0,0.00010171,2]
[348376917,1736482238562,-502.44220838,0.00010171,2]
[348376919,1736482238571,-500.0,0.00010171,2]
[348376921,1736482238586,-500.0,0.00010171,2]
[348376923,1736482238596,-501.36063463,0.00010171,2]
[348376926,1736482238606,-502.30079097,0.00010171,2]
[348376928,1736482238616,-689.64,0.00010171,2]
[348376930,1736482238627,-500.0,0.00010171,2]
[348376932,1736482238636,-501.5310355,0.00010171,2]
[348376934,1736482238646,-503.2949391,0.00010171,2]
[348376936,1736482238656,-502.71911238,0.00010171,2]
[348376938,1736482238665,-502.84135481,0.00010171,2]
[348376940,1736482238676,-500.0,0.00010171,2]
[348376942,1736482238685,-503.62807146,0.00010171,2]
[348376944,1736482238694,-500.0,0.00010171,2]
[348376946,1736482238704,-820.83,0.00010171,2]
[348376948,1736482238714,-678.02,0.00010171,2]
[348376950,1736482238724,-506.25762928,0.00010171,2]
[348376952,1736482238734,-502.00893302,0.00010171,2]
[348376954,1736482238743,-582.05,0.00010171,2]
[348376956,1736482238753,-500.0,0.00010171,2]
[348376958,1736482238762,-501.85436595,0.00010171,2]
[348376960,1736482238772,-500.0,0.00010171,2]
[348376962,1736482238784,-505.42815527,0.00010171,2]
[348376964,1736482238793,-501.93352859,0.00010171,2]
[348376966,1736482238803,-500.0,0.00010171,2]
[348376968,1736482238813,-500.0,0.00010171,2]
[348376970,1736482238822,-500.0,0.00010171,2]
[348376980,1736482238916,-501.92380687,0.00010171,2]
[348376982,1736482238926,-500.0,0.00010171,2]
[348376984,1736482238936,-746.33,0.00010171,2]
[348376986,1736482238946,-500.80405296,0.00010171,2]
[348376988,1736482238955,-500.0,0.00010171,2]
[348376990,1736482238964,-502.17363132,0.00010171,2]
[348376992,1736482238974,-757.15,0.00010171,2]
[348376994,1736482238983,-502.99428162,0.00010171,2]
[348376996,1736482238992,-505.47479646,0.00010171,2]
[348376997,1736482239003,-337.43143863,0.00010171,2]
[348376999,1736482239012,-500.0,0.00010171,2]
[348377001,1736482239021,-645.38,0.00010171,2]
[348377003,1736482239031,-500.0,0.00010171,2]
[348377004,1736482239040,-500.0,0.00010171,2]
[348377006,1736482239049,-501.83771637,0.00010171,2]
[348377008,1736482239058,-501.32925466,0.00010171,2]
[348377009,1736482239067,-503.68853846,0.00010171,2]
[348377010,1736482239076,-500.0,0.00010171,2]
[348377011,1736482239085,-501.64777896,0.00010171,2]
[348377012,1736482239094,-502.6353164,0.00010171,2]
[348377013,1736482239103,-501.74954191,0.00010171,2]
[348377014,1736482239112,-501.23673812,0.00010171,2]
[348377015,1736482239121,-765.44,0.00010171,2]
[348377016,1736482239131,-500.0,0.00010171,2]
[348377017,1736482239140,-3560.26,0.00010171,2]
[348377018,1736482239149,-500.0,0.00010171,2]
[348377019,1736482239159,-500.0,0.00010171,2]
[348377020,1736482239168,-500.0,0.00010171,2]
[348377021,1736482239177,-458.89077681,0.00010171,2]
[348377022,1736482239186,-500.0,0.00010171,2]
[348377023,1736482239195,-415.02574676,0.00010171,2]
[348377024,1736482239204,-911.25,0.00010171,2]
[348377025,1736482239214,-500.0,0.00010171,2]
[348377026,1736482239223,-904.46,0.00010171,2]
[348377027,1736482239233,-500.0,0.00010171,2]
[348377028,1736482239242,-3190.88,0.00010171,2]
[348377029,1736482239251,-806.41,0.00010171,2]
[348377030,1736482239260,-500.0,0.00010171,2]
[348377031,1736482239269,-2583.63,0.00010171,2]
[348377032,1736482239278,-500.0,0.00010171,2]
[348377033,1736482239288,-576.36,0.00010171,2]
[348377034,1736482239297,-765.79,0.00010171,2]
[348377035,1736482239307,-583.14,0.00010171,2]
[348377036,1736482239316,-500.0,0.00010171,2]
[348377037,1736482239326,-500.0,0.00010171,2]
[348377038,1736482239336,-508.17,0.00010171,2]
[348377039,1736482239346,-800.45,0.00010171,2]
[348377040,1736482239355,-500.0,0.00010171,2]
[348377041,1736482239365,-726.47,0.00010171,2]
[348377042,1736482239375,-500.0,0.00010171,2]
[348377043,1736482239384,-500.0,0.00010171,2]
[348377044,1736482239393,-566.08,0.00010171,2]
[348377045,1736482239402,-586.11841025,0.00010171,2]
[348377046,1736482239412,-889.62,0.00010171,2]
[348377047,1736482239421,-504.64321333,0.00010171,2]
[348377048,1736482239430,-954.62,0.00010171,2]
[348377049,1736482239440,-170.24,0.00010171,2]
[348377050,1736482239451,-500.0,0.00010171,2]
[348377051,1736482239461,-658.55,0.00010171,2]
[348377052,1736482239470,-500.0,0.00010171,2]
[348377053,1736482239481,-504.01314676,0.00010171,2]
[348377054,1736482239491,-765.97,0.00010171,2]
[348377055,1736482239500,-500.0,0.00010171,2]
[348377056,1736482239509,-302.72300424,0.00010171,2]
[348377057,1736482239518,-500.0,0.00010171,2]
[348377058,1736482239527,-508.43838309,0.00010171,2]
[348377059,1736482239538,-665.54,0.00010171,2]
[348377060,1736482239547,-500.0,0.00010171,2]
[348377061,1736482239556,-500.0,0.00010171,2]
[348377062,1736482239567,-500.0,0.00010171,2]
[348377063,1736482239577,-506.20269691,0.00010171,2]
[348377064,1736482239587,-500.0,0.00010171,2]
[348377065,1736482239597,-600.0,0.00010186,2]
[348377066,1736482239607,-500.0,0.00010186,2]
[348377067,1736482239617,-1665.19150886,0.00010188,2]
[348377068,1736482239626,-150.0,0.00010194,2]
[348377069,1736482239636,-150.0,0.00010202,2]
[348377070,1736482239645,-150.0,0.00010211,2]
[348377071,1736482239654,-5586.2247445,0.00010245,2]
[348377072,1736482239665,-1665.19150886,0.00010246,2]
[348377073,1736482239674,-4141.67783801,0.00010246,4]
[348377074,1736482239683,-5177.09829751,0.00010246,4]
[348377075,1736482239693,-902.33,0.00010258,2]
[348377076,1736482239702,-999.0,0.00010258,2]
[348377077,1736482239711,-2790.23,0.00010258,2]
[348377078,1736482239721,-500.0,0.00010258,2]
[348377079,1736482239730,-970.03,0.00010258,2]
[348377080,1736482239739,-1163.64,0.00010258,2]
[348377081,1736482239748,-1390.24,0.00010258,2]
[348377082,1736482239758,-397.63454652,0.00010258,2]
[348377083,1736482239786,-102.36545348,0.00010258,2]
[348377084,1736482239795,-346.96140169,0.00010258,2]
[348377085,1736482239806,-299.99,0.00010258,2]
[348377088,1736482240819,-440.18859831,0.00010258,2]
[348377089,1736482240828,-2979.29,0.00010258,2]
[348377090,1736482240839,-1114.58,0.00010258,2]
[348377091,1736482240848,-1430.06,0.00010258,2]
[348377092,1736482240862,-1898.45,0.00010259,2]
[348377093,1736482240872,-500.0,0.00010271,2]
[348377094,1736482240881,-1774.21,0.00010271,2]
[348377095,1736482240890,-3237.6,0.00010271,2]
[348377096,1736482240901,-1517.76,0.00010271,2]
[348377097,1736482240911,-964.84,0.00010271,2]
[348377098,1736482240921,-2669.08,0.00010271,2]
[348377099,1736482240930,-500.0,0.00010271,2]
[348377100,1736482240940,-956.05,0.00010271,2]
[348377101,1736482240949,-549.76,0.00010271,2]
[348377102,1736482240958,-871.23,0.00010271,2]
[348377103,1736482240968,-3021.52,0.00010271,2]
[348377104,1736482240977,-654.27,0.00010271,2]
[348377105,1736482240986,-1118.56,0.00010271,2]
[348377106,1736482240996,-500.0,0.00010271,2]
[348377107,1736482241006,-1029.18,0.00010272,2]
[348377108,1736482241016,-402.932174,0.00010272,2]
[348377109,1736482241025,-689.05,0.00010272,2]
[348377110,1736482241035,-428.092485,0.00010272,2]
[348377111,1736482241045,-153.089638,0.00010272,2]
[348377112,1736482241054,-500.0,0.00010272,2]
[348377113,1736482241064,-992.36,0.00010272,2]
[348377114,1736482241075,-951.01,0.00010272,2]
[348377115,1736482241085,-163.806614,0.00010272,2]
[348377116,1736482241095,-500.0,0.00010272,2]
[348377117,1736482241105,-2000.0,0.00010272,2]
[348377118,1736482241114,-189.391907,0.00010272,2]
[348377119,1736482241124,-200.0,0.00010272,2]
[348377120,1736482241133,-528.62151466,0.00010272,2]
[348377121,1736482241143,-1009.99,0.00010272,2]
[348377122,1736482241152,-500.0,0.00010272,2]
[348377123,1736482241161,-503.71897851,0.00010272,2]
[348377124,1736482241171,-614.4,0.00010272,2]
[348377125,1736482241180,-500.0,0.00010272,2]
[348377126,1736482241189,-163.80661,0.00010272,2]
[348377127,1736482241199,-506.63770181,0.00010272,2]
[348377128,1736482241208,-500.0,0.00010272,2]
[348377129,1736482241218,-353.33447894,0.00010272,2]
[348377130,1736482241227,-679.72,0.00010272,2]
[348377131,1736482241240,-189.391908,0.00010272,2]
[348377132,1736482241250,-500.0,0.00010272,2]